Cogmind - Beta 17 @@@ ROGUE MODE // 2026.08.09 @ 15:27:24 Player: P9H Result: Destroyed by H-61 Shepherd with Heavy Assault Cannon Performance ------------- Evolutions (2) 1000 Regions Visited (3) 600 Robots Destroyed (52) 260 Value Destroyed (1437) 1437 Prototype IDs (3) 60 Alien Tech Used (0) 0 Bonus (0) 0 TOTAL SCORE: 3357 Bonus ------- None Cogmind --------- Core Integrity 0/550 Matter 300/300 Energy 100/100 System Corruption 0% Temperature Cool (0) Movement Flying (34) Location -8/Materials Parts ------- > --- POWER (1) -------- (None) > --- PROPULSION (5) --- Flight Unit Improved Flight Unit Improved Flight Unit > --- UTILITY (3) ------ Small Storage Unit Advanced Visual Processing Unit Hacking Suite > --- WEAPON (2) ------- Scythe > --- INVENTORY (8) ---- Improved Flight Unit Advanced Heat Sink Hacking Suite High-powered Tractor Beam Missile Launcher Missile Launcher Missile Launcher Heavy Mace Peak State ------------ > --- POWER ------------ Light Ion Engine > --- PROPULSION ------- Flight Unit Flight Unit Flight Unit Improved Flight Unit Improved Flight Unit > --- UTILITY ---------- Small Storage Unit Advanced Visual Processing Unit Hacking Suite > --- WEAPON ----------- Field Laser Scythe > --- INVENTORY -------- Improved Flight Unit Advanced Heat Sink Hacking Suite Missile Launcher Missile Launcher Missile Launcher Heavy Mace [Rating: 25] Favorites ----------- Power Light Ion Engine Engine Light Ion Engine Power Core Light Nuclear Core Propulsion Flight Unit Leg Aluminum Leg Wheel Wheel Flight Unit Flight Unit Utility Small Storage Unit Device Structural Scanner Storage Small Storage Unit Processor Visual Processing Unit Hackware Hacking Suite Weapon Medium Laser Energy Gun Medium Laser Energy Cannon Beam Cannon Ballistic Gun Light Assault Rifle Launcher Mini Grenade Launcher Slashing Weapon Katana Special Melee Weapon Datajack Build | -11 -10 -9 -8 ------- Run | Yrd Mat Mat Mat Slots Evolved 4 | . . 2 2 Power . | . . . . Propulsion 3 | . . 1 2 Utility 1 | . . 1 . Weapon . | . . . . Parts Attached 53 | 7 8 11 27 Power 11 | 2 . 3 6 Engine 8 | 2 . 1 5 Core 3 | . . 2 1 Reactor . | . . . . Propulsion 20 | 2 3 4 11 Treads . | . . . . Leg 1 | . . . 1 Wheel 2 | 2 . . . Hover . | . . . . Flight 17 | . 3 4 10 Utility 7 | 1 2 2 2 Device 2 | . . 2 . Storage 2 | 1 1 . . Processor 2 | . 1 . 1 Hackware 1 | . . . 1 Protection . | . . . . Artifact . | . . . . Weapon 15 | 2 3 2 8 Energy Gun 3 | 1 1 . 1 Energy Cannon 1 | . 1 . . Ballistic Gun 4 | 1 . . 3 Ballistic Cannon . | . . . . Launcher 1 | . . . 1 Special Weapon . | . . . . Impact Weapon . | . . . . Slashing Weapon 4 | . . 2 2 Piercing Weapon . | . . . . Special Melee Weapon 2 | . 1 . 1 Unidentified Prototypes 3 | . . . 3 Parts Lost 29 | . 3 6 20 Power 7 | . 1 1 5 Propulsion 14 | . 1 4 9 Utility 1 | . . . 1 Weapon 7 | . 1 1 5 Highest Loss Streak 4 | . 3 4 4 To Critical Strikes . | . . . . Average Backups 7 | 1 7 7 7 Power 1 | . 1 1 . Propulsion 1 | . 3 . . Utility 2 | . . 3 3 Weapon 1 | . 1 1 3 Tool/Special . | . . . . Unused Backups 26 | . 9 . 17 Power . | . . . . Propulsion 8 | . 7 . 1 Utility 7 | . 1 . 6 Weapon 11 | . 1 . 10 Tool/Special . | . . . . Average Slot Usage (%) 82 | . 96 84 69 Engine 8 | . 13 4 5 Core 2 | . . 6 1 Wheel 2 | . 7 . . Flight 19 | . 20 25 17 Device 1 | . . 3 1 Storage 11 | . 14 11 9 Processor 12 | . 11 11 14 Energy Gun 8 | . 18 . 3 Energy Cannon 1 | . 1 3 . Ballistic Gun 5 | . 7 6 3 Slashing Weapon 6 | . . 11 9 Peak Build Rating 25 | 6 9 14 25 Average Rating 12 | 4 8 12 17 On Entrance 7 | . 6 9 14 Avg Prop Armor Cover (%) . | . . . . Naked Turns . | . . . . Heaviest Build 19 | 13 14 15 19 Greatest Support 26 | 26 26 12 22 Greatest Overweight (x) 5 | . 4 1 5 Average Overweight (x) . | . . . . Largest Inventory Capacity 8 | 8 8 8 8 Average Capacity 7 | 5 8 8 8 Most Carried 8 | 4 8 8 8 Average Carried 7 | 1 7 7 7 Final Capacity 8 | 8 8 8 8 Final Carried 8 | 4 8 8 8 Class Distribution -------------------- 62% | Mutant 30% | Scavenger-Mutant 6% | Scavenger-Sprinter Dominant Class ---------------- Mutant | -10/Materials Mutant | -9/Materials Scavenger-Mutant | -8/Materials Resources | -11 -10 -9 -8 ----------- Run | Yrd Mat Mat Mat Matter Collected 921 | 186 242 116 377 Remotely . | . . . . Salvage Created 1878 | . 410 439 1029 Parts 100 | . 23 24 53 Haulers Intercepted 3 | . . . 3 Recyclers Shooed . | . . . . Parts Field Recycled . | . . . . Retrieved Matter . | . . . . Parts Self-Destructed . | . . . . Prevented . | . . . . Parts Restored . | . . . . Kills | -11 -10 -9 -8 ------- Run | Yrd Mat Mat Mat Combat Hostiles Destroyed 44 | . 7 10 27 Melee 18 | . . 6 12 Guns 19 | . 7 2 10 Cannons 2 | . . 2 . AOE 5 | . . . 5 Classes Destroyed 10 | . 5 2 3 Worker 1 | . . . 1 Builder 1 | . 1 . . Hauler 3 | . . . 3 Recycler 1 | . 1 . . Watcher 2 | . 2 . . Swarmer 15 | . 2 . 13 Grunt 20 | . 5 6 9 Brawler 1 | . . . 1 Duelist 1 | . . 1 . Sentry 7 | . . 3 4 Best Kill Streak 6 | . 2 6 6 Combat Bots Only 6 | . 2 6 5 Max Kills in Single Turn 4 | . 1 1 4 Gunslinging . | . . . . Exploded 3 | . . . 3 Melee 1 | . . 1 1 Uniques/NPCs Destroyed . | . . . . Combat | -11 -10 -9 -8 -------- Run | Yrd Mat Mat Mat Hostile Shots Fired 283 | . 36 47 200 Missed 84 | . 6 18 60 Hits 199 | . 30 29 140 Melee 3 | . . 1 2 Projectile 196 | . 30 28 138 Critical Strikes 11 | . 1 3 7 Damage Taken 2543 | . 346 402 1795 Core 749 | . 85 105 559 Absorbed by Shields . | . . . . Core Remaining (%) 79 | 100 66 73 . Volleys Fired 88 | . 31 12 45 Largest 2 | . 2 2 1 Hottest 100 | . 100 80 63 Shots Fired 125 | . 57 23 45 Gun 108 | . 56 12 40 Cannon 12 | . 1 11 . Launcher 5 | . . . 5 Special . | . . . . Kinetic 44 | . 13 12 19 Thermal 76 | . 44 11 21 Explosive 5 | . . . 5 Electromagnetic . | . . . . Robot Hit Streak 13 | . 13 9 8 Robot Miss Streak 4 | . 4 1 2 Penetration Max . | . . . . Secondary Targets . | . . . . Shots Hit Robots 142 | . 38 32 72 Core Hits 72 | . 20 16 36 Critical Kills . | . . . . Critical Parts Destroyed . | . . . . Critical Strikes 7 | . 1 . 6 Burn 1 | . 1 . . Sever 6 | . . . 6 Melee Attacks 82 | . 1 16 65 Impact . | . . . . Slashing 80 | . . 16 64 Piercing . | . . . . Sneak Attacks 7 | . 1 1 5 Combat Hostiles 1 | . . . 1 Follow-up Attacks 2 | . . . 2 Damage Inflicted 3404 | . 453 675 2276 Guns 1027 | . 451 91 485 Cannons 158 | . . 158 . Explosions 316 | . . . 316 Melee 1901 | . . 426 1475 Ramming 2 | . 2 . . Kinetic 394 | . 51 91 252 Thermal 791 | . 400 158 233 Explosive 316 | . . . 316 Electromagnetic . | . . . . Impact . | . . . . Slashing 1901 | . . 426 1475 Piercing . | . . . . Highest Corruption . | . . . . Average Corruption . | . . . . Corruption Purged . | . . . . Corruption Blocked . | . . . . Overload Shots . | . . . . Overflow Damage 106 | . . . 106 Projectiles . | . . . . Explosions . | . . . . Melee 106 | . . . 106 Knockbacks . | . . . . Impact . | . . . . Kinetic . | . . . . Secondary . | . . . . Self-Inflicted Damage 14 | . 1 . 13 Shots 1 | . . . 1 Rammed 1 | . 1 . . Targets Rammed 1 | . 1 . . Kicked . | . . . . Crushed . | . . . . Highest Temperature 311 | . 311 135 98 Average Temperature 71 | . 96 43 38 Received Heat Transfer 1101 | . 171 219 711 Siege Activations . | . . . . Martial Activations . | . . . . Shielding Activations . | . . . . Robots Disrupted . | . . . . Combat Hostiles . | . . . . Robots Corrupted . | . . . . Combat Hostiles . | . . . . Parts Fried . | . . . . Impact Corruptions . | . . . . Robots Melted . | . . . . Combat Hostiles . | . . . . Parts Melted 7 | . 5 . 2 Heat Transferred 2109 | . 1258 333 518 Parts Sabotaged . | . . . . Parts Stolen . | . . . . Parts Stripped . | . . . . Power Chain Reactions . | . . . . Alert | -11 -10 -9 -8 ------- Run | Yrd Mat Mat Mat Maximum Alert Level 1 | . . . 1 Low Security (%) 82 | 100 100 100 56 Level 1 17 | . . . 43 Level 2 . | . . . . Level 3 . | . . . . Level 4 . | . . . . Level 5 . | . . . . High Security . | . . . . Max Security . | . . . . Peak Influence 358 | . 87 167 358 Initial 41 | . . . 41 Average 88 | . 19 85 155 Influence Increases 1402 | . 217 342 843 Destroy 0b10 Robot/C 880 | . 140 200 540 Destroy 0b10 Robot/NC 40 | . 20 . 20 Destroy Leader 210 | . 34 60 116 Successful Hack 21 | . 8 7 6 Destroy Structure 26 | . . . 26 Partial Spotted 75 | . . 30 45 Lose Combat Pursuer 150 | . 15 45 90 Influence Decreases 1074 | . 217 243 614 Entered New Map 58 | . . . 58 Time Decay 731 | . 187 188 356 Lost Part 285 | . 30 55 200 Squads Dispatched 4 | . . 1 3 Investigation . | . . . . Extermination . | . . . . Reinforcement 3 | . . 1 2 Assault . | . . . . Garrison 1 | . . . 1 Intercept . | . . . . Searches Triggered . | . . . . Construction Impeded . | . . . . Haulers Reinforced . | . . . . Active Scanning Responses . | . . . . Cargo Convoy Interrupts . | . . . . Stealth | -11 -10 -9 -8 --------- Run | Yrd Mat Mat Mat Distress Signals 7 | . 1 2 4 Communications Jammed . | . . . . Distress Signals . | . . . . Times Spotted 78 | . 15 18 45 Peak Tracking Total 8 | . 3 6 8 Tactical Retreats 6 | . 1 1 4 Traps | -11 -10 -9 -8 ------- Run | Yrd Mat Mat Mat Traps Triggered 2 | . 2 . . Indirectly . | . . . . Trap Hack Attempts . | . . . . Triggered . | . . . . Disarmed . | . . . . Reprogrammed . | . . . . Reused . | . . . . Traps Extracted . | . . . . Installed . | . . . . Triggered . | . . . . Machines | -11 -10 -9 -8 ---------- Run | Yrd Mat Mat Mat Machines Disabled . | . . . . Max in Single Turn . | . . . . Machines Repaired . | . . . . Machines Dismantled . | . . . . Machines Sabotaged . | . . . . Overloaded Fab Kills . | . . . . Hacking | -11 -10 -9 -8 --------- Run | Yrd Mat Mat Mat Machines Accessed 10 | . 2 4 4 Terminals 10 | . 2 4 4 Fabricators . | . . . . Repair Stations . | . . . . Recycling Units . | . . . . Scanalyzers . | . . . . Garrison Access . | . . . . Total Hacks 18 | . 5 5 8 Successful 6 | . 1 3 2 Failed 12 | . 4 2 6 Catastrophic 5 | . 2 1 2 Database Lockouts . | . . . . Manual 12 | . 5 . 7 Terminals 18 | . 5 5 8 Fabricators . | . . . . Repair Stations . | . . . . Recycling Units . | . . . . Scanalyzers . | . . . . Garrison Access . | . . . . Terminal Hacks 6 | . 1 3 2 Level Access Points 1 | . . . 1 Branch Access Points 1 | . . 1 . Locate Traps 1 | . . 1 . Reinforcement Status 1 | . . 1 . Registered Components 2 | . 1 . 1 Fabricator Hacks . | . . . . Repair Station Hacks . | . . . . Recycling Unit Hacks . | . . . . Scanalyzer . | . . . . Garrison Access Hacks . | . . . . Unauthorized Hacks . | . . . . Terminals . | . . . . Fabricators . | . . . . Repair Stations . | . . . . Recycling Units . | . . . . Scanalyzers . | . . . . Garrison Access . | . . . . Data Cores Recovered . | . . . . Used . | . . . . Hacking Detections 8 | . 2 2 4 Full Trace Events . | . . . . Feedback Events . | . . . . Feedback Blocked . | . . . . Robot Schematics Acquired . | . . . . Robots Built . | . . . . Authchips . | . . . . Time . | . . . . Total Robot Build Rating . | . . . . Part Schematics Acquired . | . . . . Parts Built . | . . . . Authchips . | . . . . Time . | . . . . Total Part Build Rating . | . . . . Part Studies Acquired . | . . . . Parts Repaired . | . . . . Time . | . . . . Parts Recycled . | . . . . Recycled Matter . | . . . . Retrieved Matter . | . . . . Retrieved Components . | . . . . Parts Scanalyzed . | . . . . Part Schematics Acquired . | . . . . Parts Damaged . | . . . . Bothacking | -11 -10 -9 -8 ------------ Run | Yrd Mat Mat Mat Used RIF Installer . | . . . . Robots Hacked 1 | . 1 . . Non-combat 1 | . 1 . . Combat . | . . . . Robot Hacks Applied 1 | . 1 . . no_distress 1 | . 1 . . Relay Couplers Released . | . . . . Fabnet Peak Effective % . | . . . . Robots Rewired . | . . . . Allies Hacked . | . . . . Hacks Repelled . | . . . . Allies | -11 -10 -9 -8 -------- Run | Yrd Mat Mat Mat Total Allies . | . . . . Largest Group . | . . . . Highest-Rated Group . | . . . . Highest-Rated Ally . | . . . . Total Orders . | . . . . Ally Attacks . | . . . . Total Damage . | . . . . Kills . | . . . . Allies Corrupted . | . . . . Allies Melted . | . . . . Intel | -11 -10 -9 -8 ------- Run | Yrd Mat Mat Mat Active Infowar (turns) 1789 | . 562 415 812 Optics 1789 | . 562 415 812 Structural 262 | . . 128 134 Robot Analysis Total . | . . . . Derelict Logs Recovered . | . . . . Drone Launches . | . . . . Drone Recoveries . | . . . . Exploration | -11 -10 -9 -8 ------------- Run | Yrd Mat Mat Mat Turns Passed 1975 | 58 690 415 812 Spaces Moved 1364 | 49 456 354 505 Core 10 | 2 1 . 7 Treads . | . . . . Legs 64 | . . . 64 Wheels 157 | 47 110 . . Hover . | . . . . Flight 1133 | . 345 354 434 Fastest Speed 28 | 50 37 34 28 Average Speed 93 | 86 110 79 88 Slowest Speed 300 | 90 250 117 300 Overloaded Moves . | . . . . Propulsion Burnouts . | . . . . Robots Hopped . | . . . . Potential Cave-ins . | . . . . Cave-ins Triggered . | . . . . Exploration Rate (%) 34 | 4 68 25 40 Regions Visited 3 Branch Regions . Pre-discovered Areas . | . . . . Known Exits Taken . | . . . . Unknown Exits Taken 3 | 1 1 1 . Scrap Searched . | . . . . Spaces Dug 1 | . . . 1 Terrain Destroyed 27 | . . . 27 Melee 1 | . . . 1 Projectile . | . . . . AOE 26 | . . . 26 Terrain Rammed . | . . . . Walls Destroyed . | . . . . Machines Disabled . | . . . . Actions | -11 -10 -9 -8 --------- Run | Yrd Mat Mat Mat Total 1835 | 60 591 444 740 Wait 144 | 2 56 33 53 Move 1361 | 48 455 353 505 Hop . | . . . . Pick Up 53 | 3 18 8 24 Fast Attach 30 | 6 6 1 17 Attach 18 | . 4 10 4 Detach 4 | . . 4 . Swap 19 | 1 6 4 8 Drop 37 | . 13 3 21 Fire 88 | . 31 12 45 Melee 80 | . 1 16 63 Ram 1 | . 1 . . Kick . | . . . . Crush . | . . . . Escape Stasis . | . . . . Rewire . | . . . . Trap . | . . . . Miscellaneous . | . . . . Route ------- -11/Scrapyard -10/Materials (discovered 2 exits: *Mat / [*Min]) -9/Materials (discovered 3 exits: *Mat / Min / *Sto) -8/Materials (discovered 3 exits: *Fac x3) History --------- Turn | Location | Event 42 | -11/Scrapyard | Discovered new exit (range 15) 59 | -11/Scrapyard | Entered Materials 309 | -10/Materials | Build established: Mutant 395 | -10/Materials | Lost 3 parts (1p1n1w) 400 | -10/Materials | Discovered new exit (range 7) 539 | -10/Materials | Discovered new exit (range 5) 749 | -10/Materials | Entered another Materials area 749 | -9/Materials | Evolved 2 slots: Propulsion x1, Utility x1 770 | -9/Materials | Discovered new exit (range 11) 816 | -9/Materials | Identified exit to Mines 816 | -9/Materials | Identified exit to Storage 929 | -9/Materials | Lost 4 parts (3n1w) 1070 | -9/Materials | Discovered new exit (range 18) 1164 | -9/Materials | Entered another Materials area 1164 | -8/Materials | Evolved 2 slots: Propulsion x2 1298 | -8/Materials | Build established: Scavenger-Mutant 1357 | -8/Materials | Lost 4 parts (1p1n1u1w) 1489 | -8/Materials | Core integrity fell below 50% 1525 | -8/Materials | Core integrity fell below 20% 1886 | -8/Materials | Lost 4 parts (1p3n) 1905 | -8/Materials | Garrison activated, responded to threat 1940 | -8/Materials | Identified exit to Factory 1976 | -8/Materials | Destroyed by H-61 Shepherd with Heavy Assault Cannon Last Messages --------------- 3R9509N2Z7: Com. Wheel FTV4OP7GCG: Lgt. EM Pulse Cannon 6SY04D97Q9: Hrd. Light Armor Plating E4XS58A7LA: Med. Matter Pod QPT605SI49: Field Laser YLLJXI1OB8: Flak Cannon Downloaded coordinate data. 01955_ W-25 Informer sends out distress signal. 01958_ U-05 Engineer lays Concrete. 01966_ Y-45 Defender destroyed. 01973_ ALERT: Suspicious intruders detected, dispatching Cutter reinforcements to area. 01974_ Flight Unit destroyed. 01974_ O-16 Technician: "IFF HANDSHAKE FAILED. SECURING TERMINAL." 01974_ Slug penetrates O-16 Technician. 01974_ O-16 Technician destroyed. 01975_ Lgt. Ion Engine severed. 01976_ Field Laser destroyed. 01976_ Flight Unit destroyed. Map ----- +----------------------------------------------------+ | # # ##?????# # ????? | | # + ######## # ???? | | # # #? ???? | | # # #### #?? ???? | | #[ ####"# ######### #???????? | | # ! #??### ## # #???????? | | ######????#= ## """ + %%######### | | ??????????#%[## """ # | | ???????##?#! ## """ # | | ???????# # ## ?# * | | ???????# # ## ?## ########## | | ???????# ####+#???#+#?######## | | ???????## # #????????????# | | ????????### ##???#???????# | | ?????????#| ### ##??????# | | ?????????# #??????# | | ?????????# = +??????# | | ?????????# ##+###??????# | | ?????######+###???????????# | | ?????# #?????????????# | | ?????# [ #?????????????# | | ?????# #?????????????######## | | ?????# #????????????????????? | | ?????# #????????????????????? | | ?????# * %#????????????????????? | | ?????####@###????????????????????? | | ??????? ccc ?????????????????????? | | ?????# < #????????????######## | | ?????# % #????????????# | | ?????#####w! #????????????#"" """ | | ??????????%$=#????????????#"T """" | | ?????????? = #????????????#"" """" | | ?????????? #????????????# """" | | ?????????? #????????????# """ | | ?????????? #????????????# | | ?????????? #????????????# | | ?????????? ????????????######+# | | ??????????? ?????????######## | | ???????????H | | ??????????? ??????##########=] | | ??????????? #??????# "T" +] | | ???????????####??????# #%][ | | ?????????????????????#! #][ | | ?????????????????????# # | | ?????????????????????########## | | ??????????????????????#### # | | ??????????????######### # | | ??????????????# # | | ??????????????# # | | ??????????????# # | +----------------------------------------------------+ Best States ------------- Heat Dissipation 38 Energy Generation 18 Energy Capacity 265 Matter Stores 300 Matter Capacity 300 Sight Range 20 Terrain Scan Density 10 Evasion (%) 64 Offensive Hacking 10 Item Schematics ----------------- None Robot Schematics ------------------ None Fabricated ------------ Nothing Repaired ---------- Nothing Studied --------- None Alien Tech Used ----------------- None Achievements -------------- None Challenges ------------ None Game ------ Seed ShadeControlSlamshotty Manual? 0 Play Time 00:33:42 Cumulative 82.7 hours Start 2026.08.08 @ 22:49:35 End 2026.08.09 @ 15:27:24 Sessions 3 Manual Loads 0 Difficulty Rogue Special Mode None Game No. 151 Rogue 151 Adventurer 0 Explorer 0 Win Type - Total 0 Types 0/0/0/0/0/0/0/0/0/0 Lore% 14 Gallery% 37 Achievement% 23 Wizard Run 0 Options --------- Layout 1 ASCII 0 Keyboard 1 Movement Numpad Keybinds 0 Fullscreen 2 Font 32/SmallcapsGlow Map View 50x35 Zoom Use 0% Tactical HUD 1 Map Filters NONE Filters NONE Steam 1 RUN: fe84144b-755f-4a3a-a37a-177d757678f8